Cogmind - Beta 10 @@@ ROGUE MODE // 2020.09.19 @ 18:00:26 Player: nirgal Result: Destroyed by Y-45 Defender with Heavy Assault Rifle Performance ------------- Evolutions (1) 500 Regions Visited (3) 600 Robots Destroyed (23) 115 Value Destroyed (731) 731 Prototype IDs (0) 0 Alien Tech Used (0) 0 Bonus (0) 0 TOTAL SCORE: 1946 Bonus ------- None Cogmind --------- Core Integrity 0/400 Matter 300/300 Energy 125/125 System Corruption 0% Temperature Cool (9) Movement Core (150) Ox2 Location -9/Storage Parts ------- > --- POWER (2) -------- Light Ion Engine > --- PROPULSION (3) --- (None) > --- UTILITY (2) ------ Small Storage Unit Targeting Computer > --- WEAPON (2) ------- Flail > --- INVENTORY (6) ---- Small Laser Assault Rifle Light Assault Rifle Datajack Peak State ------------ > --- POWER ------------ Ion Engine Light Ion Engine > --- PROPULSION ------- Airjet Airjet Airjet > --- UTILITY ---------- Small Storage Unit Core Shielding > --- WEAPON ----------- Flail Katana > --- INVENTORY -------- Airjet Airjet Small Laser Assault Rifle Light Assault Rifle Datajack [Rating: 19] Favorites ----------- Power Light Ion Engine Engine Light Ion Engine Propulsion Aluminum Leg Leg Aluminum Leg Hover Unit Airjet Utility Small Storage Unit Storage Small Storage Unit Processor Targeting Computer Protection Core Shielding Weapon Katana Ballistic Gun Assault Rifle Ballistic Cannon Light Cannon Impact Weapon Flail Slashing Weapon Katana Build | -11 -10 -9 -9 ------- Run | Scr Mat Mat Sto Slots Evolved 2 | . . 2 . Power 1 | . . 1 . Propulsion 1 | . . 1 . Utility . | . . . . Weapon . | . . . . Parts Attached 24 | 6 2 11 5 Power 7 | 1 . 4 2 Engine 7 | 1 . 4 2 Core . | . . . . Reactor . | . . . . Propulsion 8 | 2 . 4 2 Treads . | . . . . Leg 3 | 2 . 1 . Wheel . | . . . . Hover 5 | . . 3 2 Flight . | . . . . Utility 4 | 1 1 1 1 Device . | . . . . Storage 1 | 1 . . . Processor 1 | . . . 1 Hackware . | . . . . Protection 2 | . 1 1 . Artifact . | . . . . Weapon 5 | 2 1 2 . Energy Gun . | . . . . Energy Cannon . | . . . . Ballistic Gun 2 | 2 . . . Ballistic Cannon 1 | . 1 . . Launcher . | . . . . Special Weapon . | . . . . Impact Weapon 1 | . . 1 . Slashing Weapon 1 | . . 1 . Piercing Weapon . | . . . . Special Melee Weapon . | . . . . Unidentified Prototypes . | . . . . Parts Lost 15 | . . 5 10 Power 6 | . . 3 3 Propulsion 5 | . . . 5 Utility 2 | . . 1 1 Weapon 2 | . . 1 1 Highest Loss Streak 5 | . . 3 5 Average Slot Usage (%) 87 | . 91 91 74 Engine 15 | . 14 17 14 Leg 19 | . 28 23 . Hover 8 | . . 7 20 Storage 11 | . 14 11 11 Protection 8 | . 6 10 7 Ballistic Gun 7 | . 27 2 . Ballistic Cannon 3 | . . 5 . Impact Weapon 5 | . . 5 11 Slashing Weapon 7 | . . 8 10 Naked Turns . | . . . . Heaviest Build 24 | 11 19 24 17 Greatest Support 30 | 20 20 30 27 Greatest Overweight (x) 5 | 3 . 5 4 Average Overweight (x) . | . . . . Largest Inventory Capacity 6 | 6 6 6 6 Average Capacity 5 | 5 6 6 6 Most Carried 6 | 2 6 6 6 Average Carried 4 | 1 2 5 5 Final Capacity 6 | 6 6 6 6 Final Carried 6 | 2 6 6 4 Class Distribution -------------------- 72% | Mutant 27% | Scavenger-Mutant Dominant Class ---------------- Mutant | -10/Materials Mutant | -9/Materials Mutant | -9/Storage Resources | -11 -10 -9 -9 ----------- Run | Scr Mat Mat Sto Matter Collected 549 | 167 40 302 40 Remotely . | . . . . Salvage Created 828 | . 95 489 244 Parts 65 | . 4 41 20 Haulers Intercepted . | . . . . Recyclers Shooed . | . . . . Parts Field Recycled . | . . . . Retrieved Matter . | . . . . Parts Self-Destructed . | . . . . Prevented . | . . . . Kills | -11 -10 -9 -9 ------- Run | Scr Mat Mat Sto Combat Hostiles Destroyed 21 | . 2 11 8 Melee 17 | . . 9 8 Guns 3 | . 2 1 . Cannons 1 | . . 1 . Classes Destroyed 5 | . 1 3 1 Watcher 2 | . . 2 . Swarmer 5 | . . . 5 Grunt 8 | . 2 6 . Duelist 2 | . . 2 . Sentry 6 | . . 3 3 Best Kill Streak 4 | . 1 3 4 Combat Bots Only 4 | . 1 3 4 Max Kills in Single Turn 1 | . 1 1 1 Gunslinging . | . . . . Exploded . | . . . . Melee 1 | . . 1 1 Uniques/NPCs Destroyed . | . . . . Combat | -11 -10 -9 -9 -------- Run | Scr Mat Mat Sto Damage Taken 1687 | . 135 755 797 Core 445 | . 40 96 309 Absorbed by Shields . | . . . . Core Remaining (%) 92 | 100 84 . . Volleys Fired 22 | . 10 12 . Largest 2 | . 2 2 . Hottest 55 | . 40 55 . Shots Fired 44 | . 20 24 . Gun 32 | . 20 12 . Cannon 12 | . . 12 . Launcher . | . . . . Special . | . . . . Kinetic 44 | . 20 24 . Thermal . | . . . . Explosive . | . . . . Electromagnetic . | . . . . Robot Hit Streak 9 | . 4 9 . Robot Miss Streak 3 | . 3 2 . Penetration Max . | . . . . Secondary Targets . | . . . . Shots Hit Robots 81 | . 13 44 24 Core Hits 32 | . 5 18 9 Critical Hits 2 | . . 1 1 Critical Kills 1 | . . 1 . Critical Parts Destroyed 1 | . . . 1 Melee Attacks 69 | . . 31 38 Impact 11 | . . 3 8 Slashing 58 | . . 28 30 Piercing . | . . . . Sneak Attacks 1 | . . . 1 Combat Hostiles 1 | . . . 1 Follow-up Attacks 6 | . . 2 4 Damage Inflicted 2018 | . 154 1112 752 Guns 300 | . 154 146 . Cannons 147 | . . 147 . Explosions . | . . . . Melee 1560 | . . 819 741 Ramming 11 | . . . 11 Kinetic 447 | . 154 293 . Thermal . | . . . . Explosive . | . . . . Electromagnetic . | . . . . Impact 205 | . . 62 143 Slashing 1355 | . . 757 598 Piercing . | . . . . Highest Corruption . | . . . . Average Corruption . | . . . . Corruption Purged . | . . . . Overload Shots . | . . . . Overflow Damage 17 | . . 3 14 Projectiles . | . . . . Explosions . | . . . . Melee 17 | . . 3 14 Knockbacks 1 | . . 1 . Impact . | . . . . Kinetic 1 | . . 1 . Secondary . | . . . . Self-Inflicted Damage 5 | . . . 5 Shots . | . . . . Rammed 4 | . . . 4 Targets Rammed 4 | . . . 4 Kicked . | . . . . Crushed . | . . . . Highest Temperature 43 | . 2 43 1 Average Temperature 14 | . 2 17 1 Received Heat Transfer 429 | . 78 216 135 Siege Activations . | . . . . Robots Corrupted . | . . . . Combat Hostiles . | . . . . Parts Fried . | . . . . Impact Corruptions . | . . . . Robots Melted . | . . . . Combat Hostiles . | . . . . Parts Melted . | . . . . Heat Transferred . | . . . . Parts Sabotaged . | . . . . Parts Stolen . | . . . . Parts Stripped . | . . . . Power Chain Reactions . | . . . . Missiles Intercepted . | . . . . Alert | -11 -10 -9 -9 ------- Run | Scr Mat Mat Sto Peak Influence 270 | . 50 229 270 Initial 65 | . . 20 65 Average 98 | . 18 109 177 Maximum Alert Level 1 | . . 1 1 Low Security (%) 85 | 100 100 91 50 Level 1 14 | . . 8 49 Level 2 . | . . . . Level 3 . | . . . . Level 4 . | . . . . Level 5 . | . . . . High Security . | . . . . Max Security . | . . . . Squads Dispatched 5 | . . 2 3 Investigation 2 | . . 1 1 Extermination . | . . . . Reinforcement 3 | . . 1 2 Assault . | . . . . Garrison . | . . . . Intercept . | . . . . Construction Impeded . | . . . . Haulers Reinforced . | . . . . Stealth | -11 -10 -9 -9 --------- Run | Scr Mat Mat Sto Distress Signals 3 | . . 2 1 Communications Jammed . | . . . . Distress Signals . | . . . . Times Spotted 36 | . 3 16 17 Peak Tracking Total 6 | . 2 4 6 Tactical Retreats 7 | . 2 . 5 Traps | -11 -10 -9 -9 ------- Run | Scr Mat Mat Sto Traps Triggered . | . . . . Indirectly . | . . . . Trap Hack Attempts . | . . . . Triggered . | . . . . Disarmed . | . . . . Reprogrammed . | . . . . Reused . | . . . . Traps Extracted . | . . . . Installed . | . . . . Triggered . | . . . . Machines | -11 -10 -9 -9 ---------- Run | Scr Mat Mat Sto Machines Disabled . | . . . . Max in Single Turn . | . . . . Machines Sabotaged . | . . . . Garrisons Compromised . | . . . . Overloaded Fab Kills . | . . . . Fab Network Shutdowns . | . . . . Hacking | -11 -10 -9 -9 --------- Run | Scr Mat Mat Sto Machines Accessed 4 | . 1 1 2 Terminals 4 | . 1 1 2 Fabricators . | . . . . Repair Stations . | . . . . Recycling Units . | . . . . Scanalyzers . | . . . . Garrison Access . | . . . . Total Hacks 12 | . 3 3 6 Successful 2 | . . 2 . Failed 10 | . 3 1 6 Catastrophic 1 | . 1 . . Database Lockouts . | . . . . Manual 9 | . 3 2 4 Terminals 12 | . 3 3 6 Fabricators . | . . . . Repair Stations . | . . . . Recycling Units . | . . . . Scanalyzers . | . . . . Garrison Access . | . . . . Terminal Hacks 2 | . . 2 . Alert Level 1 | . . 1 . Garrison Status 1 | . . 1 . Fabricator Hacks . | . . . . Repair Station Hacks . | . . . . Recycling Unit Hacks . | . . . . Scanalyzer . | . . . . Garrison Access Hacks . | . . . . Unauthorized Hacks . | . . . . Terminals . | . . . . Fabricators . | . . . . Repair Stations . | . . . . Recycling Units . | . . . . Scanalyzers . | . . . . Garrison Access . | . . . . Data Cores Recovered . | . . . . Used . | . . . . Hacking Detections 4 | . 1 1 2 Full Trace Events 3 | . . 1 2 Feedback Events . | . . . . Feedback Blocked . | . . . . Robot Schematics Acquired . | . . . . Robots Built . | . . . . Matter . | . . . . Time . | . . . . Total Robot Build Rating . | . . . . Part Schematics Acquired . | . . . . Parts Built . | . . . . Matter . | . . . . Time . | . . . . Total Part Build Rating . | . . . . Parts Repaired . | . . . . Time . | . . . . Parts Recycled . | . . . . Recycled Matter . | . . . . Retrieved Matter . | . . . . Retrieved Components . | . . . . Parts Scanalyzed . | . . . . Part Schematics Acquired . | . . . . Parts Damaged . | . . . . Bothacking | -11 -10 -9 -9 ------------ Run | Scr Mat Mat Sto Used RIF Installer . | . . . . Robots Hacked . | . . . . Non-combat . | . . . . Combat . | . . . . Robot Hacks Applied . | . . . . Relay Couplers Released . | . . . . Robots Rewired . | . . . . Allies Hacked . | . . . . Hacks Repelled . | . . . . Allies | -11 -10 -9 -9 -------- Run | Scr Mat Mat Sto Total Allies . | . . . . Largest Group . | . . . . Highest-Rated Group . | . . . . Highest-Rated Ally . | . . . . Total Orders . | . . . . Ally Attacks . | . . . . Total Damage . | . . . . Kills . | . . . . Allies Corrupted . | . . . . Allies Melted . | . . . . Intel | -11 -10 -9 -9 ------- Run | Scr Mat Mat Sto Robot Analysis Total . | . . . . Derelict Logs Recovered . | . . . . Drone Launches . | . . . . Drone Recoveries . | . . . . Exploration | -11 -10 -9 -9 ------------- Run | Scr Mat Mat Sto Turns Passed 1065 | 66 209 571 219 Spaces Moved 677 | 42 141 338 156 Core 32 | 15 . 4 13 Treads . | . . . . Legs 408 | 27 141 240 . Wheels . | . . . . Hover 237 | . . 94 143 Flight . | . . . . Fastest Speed 50 | 50 120 52 52 Average Speed 102 | 131 120 105 69 Slowest Speed 300 | 200 120 300 250 Overloaded Moves . | . . . . Propulsion Burnouts . | . . . . Robots Hopped . | . . . . Cave-ins Triggered . | . . . . Exploration Rate (%) 21 | 4 23 29 29 Regions Visited 3 Branch Regions 1 Pre-discovered Areas . | . . . . Known Exits Taken . | . . . . Unknown Exits Taken 3 | 1 1 1 . Scrap Searched . | . . . . Spaces Dug . | . . . . Terrain Destroyed . | . . . . Melee . | . . . . Projectile . | . . . . AOE . | . . . . Terrain Rammed . | . . . . Walls Destroyed . | . . . . Machines Disabled . | . . . . Actions | -11 -10 -9 -9 --------- Run | Scr Mat Mat Sto Total 906 | 49 160 483 214 Wait 105 | . 4 86 15 Move 674 | 41 140 337 156 Hop . | . . . . Pick Up 9 | 2 4 3 . Fast Attach 18 | 6 1 8 3 Attach 5 | . . 3 2 Detach 2 | . . 2 . Swap 1 | . 1 . . Drop 4 | . . 4 . Fire 22 | . 10 12 . Melee 62 | . . 28 34 Ram 4 | . . . 4 Kick . | . . . . Crush . | . . . . Escape Stasis . | . . . . Rewire . | . . . . Trap . | . . . . Miscellaneous . | . . . . Route ------- -11/Scrapyard -10/Materials -9/Materials -9/Storage History --------- Turn | Location | Event 23 | -11/Scrapyard | Discovered new exit (range 15) 67 | -11/Scrapyard | Entered Materials 242 | -10/Materials | Discovered new exit (range 16) 276 | -10/Materials | Entered another Materials area 276 | -9/Materials | Evolved 2 slots: Power x1, Propulsion x1 316 | -9/Materials | Build established: Mutant 433 | -9/Materials | Lost 3 parts (1p1u1w) 833 | -9/Materials | Discovered new exit (range 3) 847 | -9/Materials | Entered Storage 982 | -9/Storage | Core integrity fell below 50% 1010 | -9/Storage | Core integrity fell below 20% 1015 | -9/Storage | Lost 5 parts (1p3n1u) 1066 | -9/Storage | Destroyed by Y-45 Defender with Heavy Assault Rifle Last Messages --------------- 00995_ R-06 Scavenger collects Imp. Ion Engine. 00998_ R-06 Scavenger collects Flight Unit. 01006_ S-10 Pest destroyed. 01010_ R-06 Scavenger collects Flight Unit. 01012_ S-10 Pest destroyed. 01015_ R-06 Scavenger collects Lgt. Assault Rifle. 01016_ Acquired Lgt. Ion Engine. 01026_ Acquired 20 matter. 01035_ ALERT: Hostiles spotted, dispatching reinforcements to Terminal S004. 01037_ Acquired 10 matter. 01045_ Katana destroyed. 01049_ ALERT: Hostiles spotted, dispatching reinforcements to Terminal S002. 01051_ Acquired Targeting Computer. 01054_ Slammed into Y-45 Defender. 01056_ Destabilizing: Core damaged (-16). 01057_ Slammed into Y-45 Defender. 01063_ Airjet destroyed. 01066_ Lgt. Ion Engine destroyed. Map ----- +----------------------------------------------------+ | | | | | | | | | | | | | | | | | | | | | | | | | ?????????????????????????????????????????????????? | | ?????????????????????????????????????????????????? | | ??????????????????#####????########??????????????? | | ??????????????##### ###### #??????????????? | | ??????????????# % += """#??????????????? | | ?????????######!### ###### """#??????????????? | | ?????????# #[#?#######??# """#??????????????? | | ?????????# + ######## ### #??????????????? | | ########## # ## #%% #??????????????? | | # # #??""""" ####"###??????????????? | | ] # # ## """"" ### % ######??????????? | | ! # # ## """"" + +???? | | [ # # ## Y ### ######??????????? | | # + ## @%#?## ##???????????????? | | # # ## u#??# #????????????????? | | ! ###### ## #??# #????????????????? | | ! / ######+###+#?? ????????????????? | | ############### #???# ?? ?? ????????????????? | | ######????????# #???# ???###?? #???????????????? | | ????????+ ??? ?????????####???????????????? | | """ "????????# ##?#?????????????????????????????? | | """ ""???????# #????????????????????????????????? | | =""" """ ?????# #????????????????????????????????? | | %""" #????# #????????????????????????????????? | | """ #????? ?????????????????????????????????? | | #????? ?????????????????????????????????? | | #????? ?????????????????????????????????? | | #######+##?????+?????????????????????????????????? | | ###??????????????????????????????????????????????? | | #??????????????????????????????????????????????? | | #??????????????????????????????????????????????? | | " #??????????????????????????????????????????????? | | " #??????????????????????????????????????????????? | | " #??????????????????????????????????????????????? | | " #??????????????????????????????????????????????? | | " #??????????????????????????????????????????????? | | #??????????????????????????????????????????????? | | ###??????????????????????????????????????????????? | +----------------------------------------------------+ Best States ------------- Heat Dissipation 28 Energy Generation 15 Energy Capacity 400 Matter Stores 300 Matter Capacity 300 Sight Range 16 Terrain Scan Density 10 Armor Coverage 225 Core Shielding 20 Evasion (%) 54 Targeting Accuracy 5 Item Schematics ----------------- None Robot Schematics ------------------ None Fabricated ------------ Nothing Alien Tech Used ----------------- None Achievements -------------- None Challenges ------------ None Game ------ Seed DisruptorProtonGravjet Manual? 0 Play Time 00:16:55 Cumulative 11.5 hours Start 2020.09.19 @ 17:43:32 End 2020.09.19 @ 18:00:26 Sessions 1 Manual Loads 0 Difficulty Rogue Special Mode None Game No. 28 Rogue 28 Adventurer 0 Explorer 0 Win Type - Total 0 Types 0/0/0/0/0/0/0/0/0 Lore% 3 Gallery% 21 Achievement% 16 Wizard Run 0 Options --------- ASCII 0 Keyboard 1 Movement Vi Keybinds 0 Fullscreen 1 Font 18/SmallcapsGlow Map View 76x50 Tactical HUD 1 Map Filters NONE Filters NONE Steam 1 RUN: 6c4d9eb3-024f-473f-bdb3-93fe4bd41a40